bitfinex-derivatives/quotes_SOLF0:USTF0_20250823
["timestamp","ask_amount","ask_price","bid_price","bid_amount"]
[1755923968316,2.8,203.8,203.62,10.34033436]
[1755923968614,2.8,203.79,203.57,7.84033436]
[1755923969024,2.8,203.78,203.57,7.84033436]
[1755923969213,2.8,203.78,203.62,10.34033436]
[1755923969509,2.8,203.78,203.63,4.32503055]
[1755923969716,2.8,203.78,203.64,4.32309609]
[1755923970017,2.8,203.78,203.65,4.32263219]
[1755923970210,2.8,203.78,203.66,4.32263219]
[1755923970414,2.8,203.78,203.62,10.34033436]
[1755923970615,2.8,203.78,203.63,8.80887517]
[1755923970915,2.8,203.78,203.64,4.32685467]
[1755923971113,2.8,203.78,203.65,4.32685467]
[1755923971316,2.8,203.78,203.66,4.32685467]
[1755923971513,2.8,203.78,203.62,10.34033436]
[1755923971813,2.8,203.78,203.63,8.817325]
[1755923972015,4.914,203.88,203.64,10.63243955]
[1755923972214,17.73,203.9,203.65,10.63243955]
[1755923972417,2.8,203.89,203.66,10.63243955]
[1755923972613,2.8,203.88,203.67,8.817325]
[1755923972816,2.8,203.88,203.68,8.81933444]
[1755923973016,2.8,203.88,203.69,8.81933444]
[1755923973216,2.8,203.88,203.7,8.82294073]
[1755923973422,2.8,203.88,203.71,4.33113502]
[1755923973616,2.8,203.88,203.72,4.33113502]
[1755923973815,2.8,203.88,203.62,10.34033436]
[1755923974016,4.914,203.86,203.63,14.46637428]
[1755923974217,7.664,203.85,203.62,10.34033436]
[1755923974420,7.664,203.85,203.63,14.47663679]
[1755923974620,2.75,203.85,203.64,14.47959374]
[1755923974922,4.914,203.84,203.65,10.65835328]
[1755923975120,4.914,203.84,203.66,10.66178337]
[1755923975320,4.914,203.84,203.67,10.66178337]
[1755923975521,4.914,203.84,203.68,10.66178337]
[1755923975716,4.914,203.84,203.69,8.84183069]
[1755923975916,4.914,203.84,203.7,8.84183069]
[1755923976216,4.914,203.84,203.49,142.74]
[1755923976217,14.93,203.8,203.46,3.85399518]
[1755923976420,2.75,203.76,203.53,10.34033436]
[1755923976615,2.75,203.76,203.54,14.47411596]
[1755923976825,2.75,203.76,203.55,14.47411596]
[1755923977114,2.75,203.76,203.56,10.64696844]
[1755923977419,10.34033436,203.75,203.57,10.64696844]
[1755923977618,10.34033436,203.75,203.58,10.64696844]
[1755923977819,10.34033436,203.75,203.59,10.64696844]
[1755923978011,10.34033436,203.75,203.6,8.82309218]
[1755923978210,2.75,203.76,203.61,8.825544]
[1755923978408,2.75,203.76,203.62,10.64759018]
[1755923978613,329.96,203.8,203.63,10.64722581]
[1755923978815,329.96,203.8,203.64,10.64722581]
[1755923979010,2.75,203.79,203.65,4.35043602]
[1755923979214,2.75,203.79,203.58,10.34033436]
[1755923979415,2.75,203.79,203.59,10.64444035]
[1755923979614,2.75,203.79,203.6,10.64444035]
[1755923979812,2.75,203.79,203.61,10.64444035]
[1755923980022,2.75,203.79,203.62,10.64444035]
[1755923980319,2.75,203.79,203.58,10.34033436]
[1755923980320,2.75,203.79,203.63,8.82079612]
[1755923980515,2.75,203.79,203.64,4.34936309]
[1755923980721,2.75,203.79,203.65,4.34936309]
[1755923980920,2.75,203.79,203.58,10.34033436]
[1755923981114,2.75,203.79,203.59,10.64941543]
[1755923981312,2.75,203.79,203.6,10.64911171]
[1755923981511,2.75,203.79,203.61,8.82514685]
[1755923981711,2.75,203.79,203.62,1.85142486]
[1755923981916,2.75,203.79,203.63,1.85142486]
[1755923982111,2.75,203.79,203.58,10.34033436]
[1755923982326,2.75,203.79,203.59,10.14162391]
[1755923982521,2.75,203.79,203.6,6.29818058]
[1755923982724,2.75,203.84,203.63,10.34033436]
[1755923982922,2.75,203.84,203.64,6.29818058]
[1755923983226,2.75,203.84,203.63,10.34033436]
[1755923983227,2.75,203.84,203.65,6.29818058]
[1755923983422,330.0,203.89,203.68,10.34033436]
[1755923983622,19.13519487,203.98,203.68,10.34033436]
[1755923983623,2.75,203.9,203.69,10.12975493]
[1755923983823,2.75,203.9,203.7,10.12975493]
[1755923984026,2.75,203.9,203.71,6.28726143]
[1755923984320,2.75,203.9,203.72,4.4688466]
[1755923984520,2.75,203.9,203.73,4.46878342]
[1755923984717,2.75,203.9,203.68,10.34033436]
[1755923985019,2.75,203.9,203.6,333.89605661]
[1755923985020,2.75,203.9,203.69,6.29047072]
[1755923985223,2.75,203.9,203.7,4.46847979]
[1755923985522,2.75,203.9,203.66,10.34033436]
[1755923985727,2.75,203.9,203.67,6.29361728]
[1755923985924,2.75,203.9,203.71,10.34033436]
[1755923986725,2.75,203.9,203.72,4.47178847]
[1755923986929,2.75,203.9,203.73,4.47088805]
[1755923987225,2.75,203.9,203.74,10.34033436]
[1755923991625,2.75,203.96,203.74,10.34033436]
[1755923991825,2.75,203.96,203.79,10.34033436]
[1755923994129,2.75,203.96,203.74,340.28033436]
[1755923994329,2.75,203.96,203.74,337.78033436]
[1755923994725,2.75,203.96,203.75,4.34502339]
[1755923994923,2.75,203.96,203.74,337.78033436]
[1755923995228,2.75,203.96,203.75,4.34532777]
[1755923995430,2.75,203.96,203.74,337.78033436]
[1755923995629,2.75,203.96,203.75,4.34569447]
[1755923995825,2.75,203.96,203.74,337.78033436]
[1755923996128,2.75,203.96,203.75,4.34546481]
[1755923996329,2.75,203.96,203.74,337.78033436]
[1755923996524,2.75,203.96,203.75,4.34483459]
[1755923996724,2.75,203.96,203.74,337.78033436]
[1755923996928,2.75,203.96,203.75,4.34507921]
[1755923997124,2.75,203.96,203.74,337.78033436]
[1755923997327,2.75,203.96,203.75,4.34500784]
[1755923997528,2.75,203.96,203.76,4.41307074]
[1755923997725,2.75,203.96,203.74,337.78033436]
[1755923997925,2.75,203.96,203.75,4.41305511]
[1755923998123,2.75,203.96,203.76,4.41305511]
[1755923998326,2.75,203.96,203.75,139.28]
[1755923998637,2.75,203.96,203.76,4.41272273]
[1755923998940,2.75,203.96,203.75,139.28]
[1755923999138,2.75,203.96,203.76,4.41240875]
[1755923999437,2.75,203.96,203.75,139.28]
[1755923999637,2.75,203.96,203.76,4.41175948]
[1755923999832,2.75,203.96,203.79,10.34033436]
[1755924000233,2.75,203.97,203.77,112.06330396]
[1755924000435,2.75,203.91,203.71,6.52630905]
[1755924000634,2.75,203.89,203.71,6.52630905]
[1755924001633,2.75,203.89,203.75,6.52630905]
[1755924001840,2.75,203.89,203.72,4.02630905]
[1755924002135,2.75,203.89,203.74,6.52630905]
[1755924002331,2.75,203.89,203.7,10.79366256]
[1755924003932,2.75,203.89,203.67,139.0]
[1755924004137,14.93,203.86,203.62,329.86]
[1755924004340,7.5978,203.85,203.62,329.86]
[1755924004639,2.69,203.84,203.62,327.36]
[1755924004944,17.62,203.84,203.61,10.79366256]
[1755924005140,14.93,203.83,203.61,10.79366256]
[1755924005344,17.62,203.79,203.55,10.79366256]
[1755924005643,2.69,203.76,203.56,4.41573285]
[1755924005940,2.69,203.75,203.55,10.79366256]
[1755924006438,14.93,203.66,203.43,10.79366256]
[1755924006634,2.69,203.67,203.37,329.86]
[1755924006635,14.93,203.6,203.38,10.79366256]
[1755924006836,2.69,203.59,203.38,10.79366256]
[1755924007437,2.69,203.59,203.24,1413.76]
[1755924007438,15.70836256,203.57,203.26,329.86]
[1755924007644,2.69,203.56,203.3,10.79366256]
[1755924007947,2.69,203.56,203.35,10.79366256]
[1755924008740,4.9151,203.55,203.3,8.29366256]
[1755924008940,2.69,203.54,203.26,329.86]
[1755924009142,2.69,203.49,203.23,10.79366256]
[1755924009443,2.69,203.47,203.21,10.79366256]
[1755924009649,2.69,203.45,203.21,10.79366256]
[1755924009845,10.79366256,203.44,203.08,1413.76]
[1755924010037,2.69,203.42,203.09,150.21616446]
[1755924010247,2.69,203.37,203.12,10.79366256]
[1755924010543,2.69,203.37,203.1,10.79366256]
[1755924010748,2.69,203.35,203.11,4.40366641]
[1755924010941,10.79366256,203.33,203.09,139.48]
[1755924011142,2.69,203.31,203.09,139.48]
[1755924011644,14.93,203.31,203.07,330.0]
[1755924011943,14.93,203.31,203.04,113.8925981]
[1755924011944,2.69,203.27,203.04,113.8925981]
[1755924012152,2.69,203.25,203.04,113.8925981]
[1755924012444,330.2,203.39,203.09,10.79366256]
[1755924012642,2.69,203.38,203.1,4.37460267]
[1755924012845,2.69,203.37,203.14,10.79366256]
[1755924013041,2.69,203.37,203.11,151.75366256]
[1755924013246,2.69,203.32,203.07,330.2]
[1755924013644,143.81,203.32,203.1,10.79366256]
[1755924013947,2.69,203.31,203.1,10.79366256]
[1755924014549,2.69,203.31,203.07,330.2]
[1755924014743,2.69,203.31,203.07,340.99366256]
[1755924014944,2.69,203.31,203.07,340.40366256]
[1755924015146,143.85,203.31,203.07,338.49366256]
[1755924015350,2.69,203.31,203.12,10.79366256]
[1755924016052,2.69,203.31,203.17,10.79366256]
[1755924016452,2.69,203.43,203.17,10.79366256]
[1755924016648,2.69,203.43,203.22,10.79366256]
[1755924016946,2.69,203.57,203.32,10.79366256]
[1755924017149,2.69,203.55,203.32,10.79366256]
[1755924017549,2.69,203.55,203.37,10.79366256]
[1755924019751,10.79366256,203.53,203.27,10.79366256]
[1755924019952,2.69,203.52,203.27,10.79366256]
[1755924020355,2.69,203.5,203.24,10.79366256]
[1755924021452,2.69,203.47,203.24,10.79366256]
[1755924021855,143.91,203.47,203.24,10.79366256]
[1755924022063,2.69,203.45,203.24,10.79366256]
[1755924022449,14.93,203.4,203.15,10.79366256]
[1755924022651,10.79366256,203.43,203.15,10.79366256]
[1755924022652,2.69,203.38,203.15,10.79366256]
[1755924022854,2.69,203.38,203.11,471.68]
[1755924022855,2.69,203.35,203.12,10.79366256]
[1755924023355,143.89,203.35,203.12,10.79366256]
[1755924023555,2.69,203.34,203.12,10.79366256]
[1755924023751,24.599,203.36,203.11,471.68]
[1755924023752,2.69,203.31,203.11,141.14]
[1755924024361,141.12,203.3,203.11,141.14]
[1755924024660,2.69,203.29,203.12,10.79366256]
[1755924025155,2.69,203.29,203.07,123.76899885]
[1755924027262,143.63,203.29,203.07,123.76899885]
[1755924027463,2.69,203.29,203.07,123.76899885]
[1755924027660,2.69,203.29,203.12,10.79366256]
[1755924028161,330.56,203.31,203.17,10.79366256]
[1755924028363,2.69,203.35,203.17,10.79366256]
[1755924028761,10.79366256,203.46,203.13,140.8]
[1755924028762,2.69,203.41,203.27,10.79366256]
[1755924029066,2.69,203.41,203.22,10.79366256]
[1755924030461,2.69,203.41,203.18,330.66]
[1755924030662,14.93,203.37,203.13,10.79366256]
[1755924030963,2.69,203.35,203.13,10.79366256]
[1755924031362,14.93,203.33,203.08,10.79366256]
[1755924031661,24.6007,203.34,203.08,10.79366256]
[1755924031662,17.62,203.27,203.08,10.79366256]
[1755924031963,14.93,203.22,203.03,151.67366256]
[1755924032167,2.69,203.21,203.03,10.79366256]
[1755924033368,14.93,203.19,202.95,140.86]
[1755924033664,2.79,203.15,202.95,8.29366256]
[1755924033869,17.72,203.14,202.93,330.74]
[1755924034069,2.79,203.1,202.85,10.79366256]
[1755924034269,2.79,203.06,202.85,10.79366256]
[1755924034460,4.9276,203.03,202.81,330.74]
[1755924034665,2.79,203.02,202.81,330.74]
[1755924035060,2.79,203.02,202.77,140.8]
[1755924035366,2.79,203.02,202.79,10.79366256]
[1755924035871,17.72,203.0,202.79,10.79366256]
[1755924036072,14.93,202.99,202.79,10.79366256]
[1755924036259,29.5688,203.01,202.72,10.79366256]
[1755924036260,14.93,202.95,202.72,10.79366256]
[1755924036464,2.79,202.91,202.69,10.79366256]
[1755924036669,2.79,202.87,202.65,341.61366256]
[1755924037770,2.79,202.87,202.7,10.79366256]
[1755924037974,2.79,202.93,202.75,10.79366256]
[1755924038170,330.82,202.95,202.75,10.79366256]
[1755924038368,2.79,202.94,202.65,330.82]
[1755924038672,2.79,202.94,202.72,10.79366256]
[1755924038973,2.79,202.94,202.77,10.79366256]
[1755924039175,330.82,202.95,202.77,10.79366256]
[1755924039363,2.79,203.0,202.82,10.79366256]
[1755924040273,2.79,203.0,202.81,17.08156565]
[1755924040966,17.58,203.0,202.76,17.08156565]
[1755924041662,2.79,203.0,202.76,17.08156565]
[1755924041863,2.79,203.0,202.82,17.08156565]
[1755924042266,331.02,203.04,202.82,17.08156565]
[1755924043368,2.79,203.07,202.88,17.08156565]
[1755924043672,2.79,203.13,202.89,255.17501556]
[1755924043862,2.79,203.13,202.89,113.61501556]
[1755924044064,4.914,203.12,202.89,113.61501556]
[1755924044567,2.79,203.13,202.94,17.08156565]
[1755924045175,331.14,203.19,203.0,17.08156565]
[1755924045773,2.79,203.18,202.94,17.08156565]
[1755924045974,2.79,203.17,203.0,17.08156565]
[1755924046874,331.14,203.19,203.0,17.08156565]
[1755924047170,2.79,203.23,203.06,17.08156565]
[1755924048469,2.79,203.22,203.04,141.42]
[1755924048975,2.79,203.2,202.99,17.08156565]
[1755924049174,14.79,203.19,202.89,113.61501556]
[1755924049377,17.58,203.16,202.91,17.08156565]
[1755924050178,2.79,203.15,202.91,17.08156565]
[1755924050571,2.79,203.14,202.91,17.08156565]
[1755924050872,2.79,203.1,202.89,237.01501556]
[1755924051077,141.46,203.09,202.89,237.01501556]
[1755924051377,144.29,203.1,202.89,237.01501556]
[1755924051774,2.79,203.1,202.89,237.01501556]
[1755924051979,144.25,203.1,202.89,237.01501556]
[1755924052176,144.15,203.1,202.89,237.01501556]
[1755924052372,17.58,203.2,202.91,17.08156565]
[1755924052578,17.58,203.19,202.92,4.47798739]
[1755924052784,2.79,203.18,202.97,17.08156565]
[1755924054178,17.58,203.18,202.97,17.08156565]
[1755924054378,2.79,203.17,202.97,17.08156565]
[1755924054576,144.41,203.17,202.97,17.08156565]
[1755924055177,2.79,203.17,202.97,17.08156565]
[1755924055379,2.79,203.17,202.89,237.01501556]
[1755924055578,2.79,203.15,202.9,21.56241389]
[1755924055874,2.79,203.15,202.91,1.98084824]
[1755924056077,2.79,203.15,202.9,17.08156565]
[1755924060284,2.79,203.15,202.89,237.01501556]
[1755924060285,2.79,203.15,202.95,10.30025192]
[1755924061289,2.79,203.14,202.95,10.30025192]
[1755924062884,2.79,203.13,202.95,10.30025192]
[1755924063085,2.79,203.12,202.92,137.84]
[1755924066878,2.79,203.12,202.95,10.30025192]
[1755924067084,2.79,203.12,202.94,10.30025192]
[1755924067690,2.79,203.12,202.95,4.48488795]
[1755924067994,2.79,203.12,202.96,4.48488795]
[1755924068195,2.79,203.12,202.97,4.48488795]
[1755924068492,2.66,203.19,202.99,10.30025192]
[1755924068794,2.66,203.19,203.0,4.48488795]
[1755924068990,2.66,203.19,203.01,4.48488795]
[1755924069186,2.66,203.19,203.02,4.48488795]
[1755924069388,2.66,203.19,203.04,10.30025192]
[1755924069589,2.66,203.19,203.05,4.48488795]
[1755924069789,2.66,203.19,203.0,139.36]
[1755924070081,2.66,203.19,203.01,4.48417849]
[1755924070296,2.66,203.19,203.02,4.48417849]
[1755924070586,2.66,203.19,202.91,10.30025192]
[1755924070587,2.66,203.16,202.91,10.30025192]
[1755924070789,2.66,203.14,202.92,4.48843286]
[1755924070987,2.66,203.14,202.93,4.48843286]
[1755924071187,2.66,203.14,202.94,4.48843286]
[1755924071393,2.66,203.14,202.95,4.48843286]
[1755924071596,2.66,203.14,202.91,10.30025192]
[1755924071788,4.9252,203.13,202.92,4.49187079]
[1755924071991,2.66,203.12,202.93,4.49187079]
[1755924072192,2.66,203.12,202.94,4.49187079]
[1755924072393,2.66,203.12,202.95,4.49187079]
[1755924072592,2.66,203.12,202.96,4.49265018]
[1755924072787,2.66,203.12,202.97,4.49265018]
[1755924072991,2.66,203.23,202.98,4.49265018]
[1755924073194,2.66,203.23,203.01,10.30025192]
[1755924073392,2.66,203.23,203.02,4.49265018]
[1755924073696,2.66,203.23,203.03,4.49265018]
[1755924073896,2.66,203.23,203.04,4.49265018]
[1755924074087,2.66,203.23,203.05,4.49265018]
[1755924074292,2.66,203.23,203.01,10.30025192]
[1755924074293,2.66,203.23,203.06,4.49265018]
[1755924074494,2.66,203.21,203.07,4.49265018]
[1755924074698,2.66,203.21,202.97,10.30025192]
[1755924074699,2.66,203.2,202.97,10.30025192]
[1755924074889,2.66,203.2,202.98,4.49542035]
[1755924075089,4.9239,203.18,202.99,4.49542035]
[1755924075285,163.4751,203.22,203.0,4.39542035]
[1755924075286,14.79,203.17,203.0,4.39542035]
[1755924075497,2.66,203.16,202.95,138.94]
[1755924075693,2.66,203.16,202.95,136.54]
[1755924076193,14.79,203.16,202.95,136.54]
[1755924076397,2.66,203.15,202.95,136.54]
[1755924077296,2.66,203.15,202.96,3.9186433]
[1755924077492,7.5847,203.15,202.95,136.54]
[1755924077697,4.9247,203.15,202.95,136.54]
[1755924077902,2.66,203.14,202.95,136.54]
[1755924078200,2.66,203.12,202.95,136.54]
[1755924080992,7.5854,203.12,202.95,136.54]
[1755924081406,2.66,203.11,202.95,136.54]
[1755924081701,2.66,203.11,202.95,134.04]
[1755924085001,331.12,203.17,202.97,10.30025192]
[1755924085207,331.12,203.17,202.98,4.62511271]
[1755924085409,331.12,203.17,202.99,4.62511271]
[1755924085608,331.12,203.17,203.0,4.62511271]
[1755924085808,331.12,203.17,202.97,10.30025192]
[1755924086111,331.12,203.17,202.98,6.469005]
[1755924086307,331.12,203.17,202.99,6.469005]
[1755924086512,331.12,203.17,203.0,6.469005]
[1755924086705,331.12,203.17,203.01,4.62418227]
[1755924086906,331.12,203.17,203.02,4.62418227]
[1755924087102,331.12,203.17,203.03,4.62418227]
[1755924087304,331.12,203.17,203.04,4.56053293]
[1755924087505,331.12,203.17,203.05,4.56053293]
[1755924087708,331.12,203.17,202.97,10.30025192]
[1755924088009,2.66,203.16,202.98,8.53936918]
[1755924088211,2.66,203.13,202.99,4.63132934]
[1755924088503,2.66,203.13,202.92,10.30025192]
[1755924088709,2.66,203.13,202.93,10.43418671]
[1755924089015,2.66,203.11,202.94,6.48601958]
[1755924089217,2.66,203.11,202.92,10.30025192]
[1755924089513,4.9259,203.1,202.93,4.6387673]
[1755924089812,2.66,203.11,202.92,10.30025192]
[1755924090008,2.66,203.11,202.93,4.63841422]
[1755924090207,17.45,203.1,202.89,113.61501556]
[1755924090415,2.66,203.08,202.9,2.13970985]
[1755924090712,2.66,203.08,202.89,113.61501556]
[1755924091115,2.66,203.05,202.89,113.61501556]
[1755924091808,2.66,203.03,202.89,111.11501556]
[1755924092009,2.66,203.0,202.74,3.92344104]
[1755924092214,7.5885,203.0,202.76,10.30025192]
[1755924092414,2.66,203.0,202.77,5.80743908]
[1755924092617,2.66,203.0,202.78,5.80743908]
[1755924092913,4.9288,202.98,202.79,5.80743908]
[1755924093109,2.66,202.97,202.76,10.30025192]
[1755924093315,2.66,202.97,202.77,5.80410295]
[1755924093511,2.66,202.97,202.78,5.80410295]
[1755924093712,2.66,202.97,202.79,1.85254201]
[1755924093912,2.66,202.97,202.76,10.30025192]
[1755924094114,2.66,202.97,202.77,5.80306579]
[1755924094316,24.6414,203.01,202.75,138.0]
[1755924094317,2.59,203.03,202.87,10.30025192]
[1755924094515,2.59,203.07,202.88,1.84788576]
[1755924094717,2.59,203.07,202.87,10.30025192]
[1755924094917,138.02,203.11,202.83,131.73276177]
[1755924094918,24.6393,203.02,202.83,131.73276177]
[1755924095118,2.59,203.01,202.83,131.73276177]
[1755924095318,2.59,202.99,202.83,131.73276177]
[1755924097014,331.14,203.02,202.83,131.73276177]
[1755924098222,2.59,203.01,202.83,131.73276177]
[1755924099420,2.59,202.99,202.83,131.73276177]
[1755924099820,2.59,202.98,202.83,131.73276177]
[1755924100116,4.9295,202.95,202.83,129.23276177]
[1755924100322,2.59,202.94,202.83,129.23276177]
[1755924101621,2.59,202.94,202.77,138.02]
[1755924101823,2.59,202.94,202.78,4.52539576]
[1755924102020,2.59,202.94,202.77,138.02]
[1755924102218,2.59,202.94,202.78,4.52507647]
[1755924102422,2.59,202.94,202.79,4.52507647]
[1755924102625,2.59,202.94,202.77,138.02]
[1755924102921,2.59,202.94,202.78,4.52291995]
[1755924103221,2.59,202.94,202.77,138.02]
[1755924103412,7.5199,202.94,202.78,4.52149213]
[1755924103614,7.5199,202.94,202.77,135.52]
[1755924103812,7.5199,202.94,202.78,4.52150861]
[1755924104115,7.5199,202.94,202.77,135.52]
[1755924104420,2.59,202.93,202.77,135.52]
[1755924104621,142.9899,202.94,202.77,135.52]
[1755924104622,2.59,202.91,202.77,135.52]
[1755924106119,4.9308,202.9,202.7,10.30025192]
[1755924106324,2.59,202.91,202.71,4.3721365]
[1755924106523,2.59,202.91,202.7,10.30025192]
[1755924106824,4.931,202.89,202.7,10.10025192]
[1755924107519,2.59,202.88,202.7,10.10025192]
[1755924108223,140.67,202.93,202.71,6.41460958]
[1755924108425,2.59,202.93,202.75,10.30025192]
[1755924108622,2.59,203.01,202.8,10.30025192]
[1755924109025,2.59,202.92,202.74,331.38]
[1755924109229,2.59,202.86,202.68,331.38]
[1755924109415,2.59,202.86,202.69,471.3]
[1755924109619,2.59,202.86,202.7,139.92]
[1755924109620,4.9322,202.84,202.7,139.92]
[1755924109919,2.59,202.86,202.69,331.38]
[1755924110121,2.59,202.84,202.69,331.38]
[1755924110418,2.59,202.84,202.7,137.34]
[1755924110621,2.59,202.84,202.69,331.38]
[1755924111019,17.38,202.85,202.69,331.38]
[1755924111219,2.59,202.84,202.69,331.38]
[1755924112524,4.9328,202.82,202.69,331.38]
[1755924112718,4.9328,202.82,202.7,139.48]
[1755924113124,2.59,202.84,202.69,331.38]
[1755924113522,2.59,202.84,202.7,139.4]
[1755924113717,2.59,202.81,202.69,331.38]
[1755924114120,2.59,202.81,202.69,329.05]
[1755924114422,2.59,202.81,202.7,139.38]
[1755924115924,2.59,202.81,202.69,329.05]
[1755924116128,2.59,202.81,202.7,139.32]
[1755924116323,2.59,202.81,202.71,139.14]
[1755924116732,2.59,202.87,202.71,139.14]
[1755924117123,2.59,202.87,202.69,329.05]
[1755924117324,2.59,202.83,202.56,14.22369296]
[1755924117524,2.59,202.83,202.6,330.73]
[1755924117725,17.38,202.83,202.57,10.30025192]
[1755924117926,2.59,202.82,202.58,475.24495321]
[1755924118127,2.59,202.82,202.59,4.56495321]
[1755924118324,2.59,202.82,202.6,4.51790119]
[1755924118622,9.8616,202.9,202.57,10.30025192]
[1755924118623,2.59,202.79,202.61,475.19790119]
[1755924118824,27.68025192,202.85,202.62,158.53748064]
[1755924119024,17.38,202.85,202.63,9.07722872]
[1755924119230,17.38,202.85,202.64,4.51571286]
[1755924119527,17.38,202.85,202.65,143.65571286]
[1755924119729,17.38,202.85,202.66,4.51571286]
[1755924120028,4.9322,202.84,202.67,139.06]
[1755924120228,4.9322,202.84,202.68,139.0]
[1755924121021,14.79,202.85,202.62,10.30025192]
[1755924121218,17.38,202.84,202.63,4.51652509]
[1755924121423,2.59,202.77,202.54,7.80025192]
[1755924121629,2.59,202.77,202.55,147.97073873]
[1755924121823,2.59,202.77,202.56,9.09073873]
[1755924122025,2.59,202.77,202.57,4.52078123]
[1755924122226,2.59,202.77,202.54,7.80025192]
[1755924122227,2.59,202.74,202.58,4.52078123]
[1755924122424,2.59,202.74,202.54,7.80025192]
[1755924122625,2.59,202.74,202.55,4.51842988]
[1755924122823,2.59,202.74,202.56,4.51842988]
[1755924123136,4.9348,202.73,202.57,137.38]
[1755924123422,4.9328,202.82,202.59,10.30025192]
[1755924123724,2.72,202.83,202.62,10.30025192]
[1755924123928,2.72,202.83,202.67,10.30025192]
[1755924124128,2.72,202.83,202.68,4.5093295]
[1755924124330,2.72,202.83,202.69,4.5093295]
[1755924124632,2.72,202.83,202.67,10.30025192]
[1755924124927,2.72,202.83,202.68,143.34863058]
[1755924125123,2.72,202.83,202.62,10.30025192]
[1755924125330,2.72,202.82,202.63,143.29140423]
[1755924125531,2.72,202.82,202.63,138.78]
[1755924125727,2.72,202.77,202.54,339.46025192]
[1755924125936,2.72,202.77,202.55,147.92153953]
[1755924126230,2.72,202.77,202.56,4.5162098]
[1755924126424,2.72,202.77,202.57,9.08062555]
[1755924126626,2.72,202.82,202.61,10.30025192]
[1755924126828,10.30025192,202.92,202.66,10.30025192]
[1755924127132,2.72,202.87,202.66,10.30025192]
[1755924127328,2.72,202.87,202.67,139.0]
[1755924127532,14.79,202.86,202.66,10.30025192]
[1755924127730,2.72,202.85,202.67,138.94]
[1755924128131,2.72,202.85,202.68,138.94]
[1755924128532,2.72,202.85,202.68,138.9]
[1755924128728,2.72,202.85,202.68,138.76]
[1755924129233,4.9324,202.83,202.63,10.30025192]
[1755924129431,2.72,202.9,202.68,10.30025192]
[1755924129628,2.72,202.9,202.69,4.39448018]
[1755924129832,2.72,202.9,202.7,4.39448018]
[1755924130033,2.72,202.9,202.71,138.94]
[1755924130234,2.72,202.9,202.68,342.00025192]
[1755924130434,2.72,202.9,202.71,10.30025192]
[1755924130830,2.72,202.9,202.72,138.8]
[1755924131224,2.72,202.9,202.72,138.74]
[1755924131430,4.9309,202.89,202.72,138.72]
[1755924131827,2.72,202.9,202.71,10.30025192]
[1755924132231,2.72,202.9,202.72,138.66]
[1755924132637,2.72,202.9,202.73,138.56]
[1755924133228,2.72,202.9,202.76,10.30025192]
[1755924134334,2.72,202.9,202.77,138.5]
[1755924134740,2.72,202.97,202.77,138.5]
[1755924134942,2.72,202.97,202.76,10.30025192]
[1755924135132,2.72,202.97,202.77,138.34]
[1755924135637,2.72,202.97,202.81,10.30025192]
[1755924136036,2.72,203.05,202.86,10.30025192]
[1755924136436,2.72,203.05,202.87,138.24]
[1755924136638,2.72,203.05,202.86,10.30025192]